Cogmind - Beta 15 @@@ ROGUE MODE // 2025.10.07 @ 22:39:49 Player: weedlord420 Result: Destroyed by QL-FDE(R) with Subdweller Laser Performance ------------- Evolutions (0) 0 Regions Visited (2) 400 Robots Destroyed (33) 165 Value Destroyed (816) 816 Prototype IDs (13) 260 Alien Tech Used (0) 0 Bonus (0) 0 TOTAL SCORE: 1641 Bonus ------- None Cogmind --------- Core Integrity 0/250 Matter 119/300 Energy 250/250 System Corruption 0% Temperature Cool (6) Movement Walking (130) Location -10/Subcaves Parts ------- > --- POWER (1) -------- Ion Engine > --- PROPULSION (2) --- Cargo Legs > --- UTILITY (2) ------ Small Storage Unit Improved Targeting Computer > --- WEAPON (2) ------- Subdweller Beam Cannon Subdweller Shrapnel Launcher > --- INVENTORY (8) ---- Subdweller Power Source Subdweller Power Source Subdweller Monowheel Structural Scanner Scrap Shield Subdweller Machine Gun Plasma Cutter Peak State ------------ > --- POWER ------------ Subdweller Power Source > --- PROPULSION ------- Cargo Legs > --- UTILITY ---------- Humpback Scrap Shield > --- WEAPON ----------- Subdweller Beam Cannon Subdweller Machine Gun > --- INVENTORY -------- Subdweller Power Source Subdweller Power Source Subdweller Monowheel Small Storage Unit Structural Scanner Subdweller Optics Scrap Shield Autogun Subdweller Machine Gun Subdweller Machine Gun Subdweller Machine Gun Plasma Cutter Makeshift Spear SUBCON Basin [Rating: 48] Favorites ----------- Power Subdweller Power Source Engine Subdweller Power Source Propulsion Wheel Treads Light Treads Leg Cargo Legs Wheel Wheel Utility Humpback Device Structural Scanner Storage Humpback Processor Improved Targeting Computer Protection Scrap Shield Weapon Autogun Energy Cannon Subdweller Beam Cannon Ballistic Gun Autogun Launcher Subdweller Shrapnel Launcher Special Weapon Plasma Cutter Piercing Weapon Makeshift Spear Build | -11 -10 -10 ------- Run | Yrd Mat Sub Slots Evolved . | . . . Power . | . . . Propulsion . | . . . Utility . | . . . Weapon . | . . . Parts Attached 36 | 6 8 22 Power 5 | 1 . 4 Engine 5 | 1 . 4 Core . | . . . Reactor . | . . . Propulsion 10 | 2 2 6 Treads 2 | . 2 . Leg 1 | . . 1 Wheel 7 | 2 . 5 Hover . | . . . Flight . | . . . Utility 8 | 1 3 4 Device 2 | . 2 . Storage 4 | 1 1 2 Processor 1 | . . 1 Hackware . | . . . Protection 1 | . . 1 Artifact . | . . . Weapon 13 | 2 3 8 Energy Gun . | . . . Energy Cannon 1 | . . 1 Ballistic Gun 8 | 2 3 3 Ballistic Cannon . | . . . Launcher 2 | . . 2 Special Weapon 1 | . . 1 Impact Weapon . | . . . Slashing Weapon . | . . . Piercing Weapon 1 | . . 1 Special Melee Weapon . | . . . Unidentified Prototypes . | . . . Parts Lost 3 | . . 3 Power . | . . . Propulsion 1 | . . 1 Utility 1 | . . 1 Weapon 1 | . . 1 Highest Loss Streak 2 | . . 2 To Critical Strikes . | . . . Average Backups 15 | 3 13 16 Power 1 | . 1 2 Propulsion 2 | 1 2 2 Utility 5 | . 5 5 Weapon 4 | . 3 5 Tool/Special . | . . . Unused Backups 21 | . . 21 Power 1 | . . 1 Propulsion 3 | . . 3 Utility 11 | . . 11 Weapon 5 | . . 5 Tool/Special 1 | . . 1 Average Slot Usage (%) 85 | . 99 82 Engine 13 | . 13 13 Treads 5 | . 7 4 Leg 1 | . . 1 Wheel 19 | . 20 19 Device 6 | . 13 4 Storage 13 | . 14 13 Protection 1 | . . 1 Energy Cannon 1 | . . 1 Ballistic Gun 18 | . 27 16 Piercing Weapon 1 | . . 2 Peak Build Rating 48 | 6 12 48 Average Rating 22 | 4 10 25 On Entrance 5 | . 6 11 Naked Turns . | . . . Heaviest Build 235 | 13 52 235 Greatest Support 55 | 32 40 55 Greatest Overweight (x) 10 | . 1 10 Average Overweight (x) 2 | . . 2 Largest Inventory Capacity 35 | 8 20 35 Average Capacity 25 | 7 18 27 Most Carried 35 | 6 20 35 Average Carried 23 | 3 13 25 Final Capacity 20 | 8 20 8 Final Carried 18 | 5 18 8 Class Distribution -------------------- 44% | Hauler-Mutant 40% | Mutant 12% | Subdweller-Mutant Dominant Class ---------------- Mutant | -10/Materials Hauler-Mutant | -10/Subcaves Resources | -11 -10 -10 ----------- Run | Yrd Mat Sub Matter Collected 1318 | 300 253 765 Remotely . | . . . Salvage Created 957 | 78 280 599 Parts 63 | 2 24 37 Haulers Intercepted . | . . . Recyclers Shooed . | . . . Parts Field Recycled . | . . . Retrieved Matter . | . . . Parts Self-Destructed 10 | . . 10 Prevented . | . . . Kills | -11 -10 -10 ------- Run | Yrd Mat Sub Combat Hostiles Destroyed 23 | . 3 20 Melee 3 | . . 3 Guns 14 | . 3 11 AOE 6 | . . 6 Classes Destroyed 13 | 2 5 6 Worker 1 | . 1 . Builder 1 | . 1 . Tunneler 1 | 1 . . Recycler 1 | 1 . . Operator 1 | . 1 . Turret 2 | . . 2 Watcher 3 | . 3 . Swarmer 9 | . . 9 Grunt 3 | . 3 . Sentry 1 | . . 1 Artisan 1 | . . 1 Cobbler 1 | . . 1 Subdweller 10 | . . 10 Best Kill Streak 5 | 1 2 5 Combat Bots Only 4 | . 1 4 Max Kills in Single Turn 2 | 1 1 2 Gunslinging . | . . . Exploded 2 | . . 2 Melee 1 | . . 1 Uniques/NPCs Destroyed . | . . . Combat | -11 -10 -10 -------- Run | Yrd Mat Sub Hostile Shots Fired 224 | . 25 199 Missed 91 | . 10 81 Hits 133 | . 15 118 Projectile 133 | . 15 118 Critical Strikes 2 | . 2 . Damage Taken 1369 | . 212 1157 Core 250 | . 13 237 Absorbed by Shields . | . . . Core Remaining (%) 100 | 100 . . Volleys Fired 91 | 10 30 51 Largest 2 | 2 2 2 Hottest 120 | 40 46 120 Shots Fired 164 | 20 60 84 Gun 139 | 20 60 59 Cannon 11 | . . 11 Launcher 11 | . . 11 Special 3 | . . 3 Kinetic 150 | 20 60 70 Thermal 14 | . . 14 Explosive . | . . . Electromagnetic . | . . . Robot Hit Streak 14 | 3 6 14 Robot Miss Streak 7 | 7 4 3 Penetration Max . | . . . Secondary Targets 2 | . . 2 Max Gunslinging Chain 1 | . . 1 Shots Hit Robots 105 | 7 38 60 Core Hits 53 | 4 16 33 Critical Kills 3 | 1 2 . Critical Parts Destroyed . | . . . Critical Strikes 3 | 1 2 . Destroy 3 | 1 2 . Melee Attacks 20 | . . 20 Impact . | . . . Slashing . | . . . Piercing 20 | . . 20 Sneak Attacks 3 | . . 3 Combat Hostiles 1 | . . 1 Follow-up Attacks . | . . . Damage Inflicted 2683 | 93 473 2117 Guns 1266 | 93 473 700 Cannons 196 | . . 196 Explosions 901 | . . 901 Melee 320 | . . 320 Ramming . | . . . Kinetic 2167 | 93 473 1601 Thermal 196 | . . 196 Explosive . | . . . Electromagnetic . | . . . Impact . | . . . Slashing . | . . . Piercing 320 | . . 320 Highest Corruption . | . . . Average Corruption . | . . . Corruption Purged . | . . . Corruption Blocked . | . . . Overload Shots . | . . . Overflow Damage 46 | . . 46 Projectiles . | . . . Explosions 46 | . . 46 Melee . | . . . Knockbacks . | . . . Impact . | . . . Kinetic . | . . . Secondary . | . . . Self-Inflicted Damage 85 | . . 85 Shots 2 | . . 2 Rammed . | . . . Targets Rammed . | . . . Kicked . | . . . Crushed . | . . . Highest Temperature 27 | . 27 24 Average Temperature 10 | . 10 9 Received Heat Transfer 615 | . 156 459 Siege Activations . | . . . Martial Activations . | . . . Shielding Activations . | . . . Robots Disrupted . | . . . Combat Hostiles . | . . . Robots Corrupted . | . . . Combat Hostiles . | . . . Parts Fried . | . . . Impact Corruptions . | . . . Robots Melted . | . . . Combat Hostiles . | . . . Parts Melted . | . . . Heat Transferred 259 | . . 259 Parts Sabotaged . | . . . Parts Stolen . | . . . Parts Stripped . | . . . Power Chain Reactions . | . . . Alert | -11 -10 -10 ------- Run | Yrd Mat Sub Maximum Alert Level . | . . . Low Security (%) 100 | 100 100 . Level 1 . | . . . Level 2 . | . . . Level 3 . | . . . Level 4 . | . . . Level 5 . | . . . High Security . | . . . Max Security . | . . . Peak Influence 45 | 5 45 . Initial . | . . . Average 4 | . 4 . Influence Increases 765 | 10 175 580 Destroy 0b10 Robot/C 300 | . 60 240 Destroy 0b10 Robot/NC 40 | 10 30 . Destroy Leader 36 | . 26 10 Successful Hack 29 | . 29 . Disable Machine 15 | . 15 . Lose Combat Pursuer 345 | . 15 330 Influence Decreases 399 | 10 175 214 Time Decay 369 | 10 175 184 Lost Part 30 | . . 30 Squads Dispatched 1 | . 1 . Investigation . | . . . Extermination . | . . . Reinforcement 1 | . 1 . Assault . | . . . Garrison . | . . . Intercept . | . . . Searches Triggered . | . . . Construction Impeded . | . . . Haulers Reinforced . | . . . Active Scanning Responses . | . . . Cargo Convoy Interrupts . | . . . Stealth | -11 -10 -10 --------- Run | Yrd Mat Sub Distress Signals 1 | . 1 . Communications Jammed . | . . . Distress Signals . | . . . Times Spotted 45 | . 13 32 Peak Tracking Total 6 | . 2 6 Tactical Retreats 10 | . 1 9 Traps | -11 -10 -10 ------- Run | Yrd Mat Sub Traps Triggered 1 | . 1 . Indirectly . | . . . Trap Hack Attempts . | . . . Triggered . | . . . Disarmed 1 | . 1 . Reprogrammed . | . . . Reused . | . . . Traps Extracted . | . . . Installed . | . . . Triggered . | . . . Machines | -11 -10 -10 ---------- Run | Yrd Mat Sub Machines Disabled 6 | . 1 5 Max in Single Turn 3 | . 1 3 Machines Repaired . | . . . Machines Dismantled . | . . . Machines Sabotaged . | . . . Overloaded Fab Kills . | . . . Hacking | -11 -10 -10 --------- Run | Yrd Mat Sub Machines Accessed 7 | . 4 3 Terminals 4 | . 4 . Fabricators . | . . . Repair Stations . | . . . Recycling Units . | . . . Scanalyzers . | . . . Garrison Access . | . . . Total Hacks 28 | . 16 12 Successful 23 | . 11 12 Failed 5 | . 5 . Catastrophic 1 | . 1 . Database Lockouts . | . . . Manual 8 | . 8 . Terminals 16 | . 16 . Fabricators . | . . . Repair Stations . | . . . Recycling Units . | . . . Scanalyzers . | . . . Garrison Access . | . . . Terminal Hacks 18 | . 6 12 Record 9 | . . 9 Robot Analysis 1 | . 1 . Prototype ID Bank 1 | . 1 . Open Door 1 | . . 1 Terminal Index 1 | . 1 . Locate Traps 2 | . 2 . Disarm Traps 1 | . 1 . Proto ID Catalog 1 | . . 1 Release Object 1 | . . 1 Fabricator Hacks . | . . . Repair Station Hacks . | . . . Recycling Unit Hacks . | . . . Scanalyzer . | . . . Garrison Access Hacks . | . . . Unauthorized Hacks 5 | . 5 . Terminals 5 | . 5 . Track 2 | . 2 . Botnet 2 | . 2 . Operators 1 | . 1 . Fabricators . | . . . Repair Stations . | . . . Recycling Units . | . . . Scanalyzers . | . . . Garrison Access . | . . . Data Cores Recovered . | . . . Used . | . . . Hacking Detections 3 | . 3 . Full Trace Events . | . . . Feedback Events . | . . . Feedback Blocked . | . . . Robot Schematics Acquired . | . . . Robots Built . | . . . Authchips . | . . . Time . | . . . Total Robot Build Rating . | . . . Part Schematics Acquired . | . . . Parts Built . | . . . Authchips . | . . . Time . | . . . Total Part Build Rating . | . . . Parts Repaired . | . . . Time . | . . . Parts Recycled . | . . . Recycled Matter . | . . . Retrieved Matter . | . . . Retrieved Components . | . . . Parts Scanalyzed . | . . . Part Schematics Acquired . | . . . Parts Damaged . | . . . Bothacking | -11 -10 -10 ------------ Run | Yrd Mat Sub Used RIF Installer . | . . . Robots Hacked . | . . . Non-combat . | . . . Combat . | . . . Robot Hacks Applied . | . . . Relay Couplers Released . | . . . Fabnet Peak Effective % . | . . . Robots Rewired . | . . . Allies Hacked . | . . . Hacks Repelled . | . . . Allies | -11 -10 -10 -------- Run | Yrd Mat Sub Total Allies . | . . . Largest Group . | . . . Highest-Rated Group . | . . . Highest-Rated Ally . | . . . Total Orders . | . . . Ally Attacks . | . . . Total Damage . | . . . Kills . | . . . Allies Corrupted . | . . . Allies Melted . | . . . Intel | -11 -10 -10 ------- Run | Yrd Mat Sub Active Infowar (turns) 2728 | . 976 1752 Terrain 492 | . 492 . Structural 2236 | . 484 1752 Robot Analysis Total 1 | . 1 . Derelict Logs Recovered 1 | . . 1 Drone Launches . | . . . Drone Recoveries . | . . . Exploration | -11 -10 -10 ------------- Run | Yrd Mat Sub Turns Passed 6230 | 87 998 5145 Spaces Moved 2078 | 47 522 1509 Core 11 | 11 . . Treads 349 | . 65 284 Legs 503 | . . 503 Wheels 1215 | 36 457 722 Hover . | . . . Flight . | . . . Fastest Speed 50 | 50 100 80 Average Speed 156 | 88 125 169 Slowest Speed 410 | 100 240 410 Overloaded Moves . | . . . Propulsion Burnouts . | . . . Robots Hopped . | . . . Potential Cave-ins . | . . . Cave-ins Triggered . | . . . Exploration Rate (%) 45 | 5 77 55 Regions Visited 2 Branch Regions 1 Pre-discovered Areas . | . . . Known Exits Taken . | . . . Unknown Exits Taken 2 | 1 1 . Scrap Searched 4 | . . 4 Spaces Dug 3 | . . 3 Terrain Destroyed 75 | . . 75 Melee . | . . . Projectile 1 | . . 1 AOE 74 | . . 74 Terrain Rammed . | . . . Walls Destroyed . | . . . Machines Disabled . | . . . Actions | -11 -10 -10 --------- Run | Yrd Mat Sub Total 4891 | 74 802 4015 Wait 2478 | 1 217 2260 Move 2076 | 46 521 1509 Hop . | . . . Pick Up 84 | 11 16 57 Fast Attach 4 | . 2 2 Attach 14 | 6 2 6 Detach . | . . . Swap 50 | . 12 38 Drop 71 | . 2 69 Fire 91 | 10 30 51 Melee 20 | . . 20 Ram . | . . . Kick . | . . . Crush . | . . . Escape Stasis . | . . . Rewire . | . . . Trap . | . . . Miscellaneous 3 | . . 3 Route ------- -11/Scrapyard -10/Materials (discovered 5 exits: [*Mat x3] / [*Min] / *Sub) -10/Subcaves (discovered 3 exits: [*Mat x2] / [*Rec]) History --------- Turn | Location | Event 23 | -11/Scrapyard | Discovered new exit (range 14) 88 | -11/Scrapyard | Entered Materials 309 | -10/Materials | Build established: Mutant 464 | -10/Materials | Discovered new exit (range 9) 485 | -10/Materials | Discovered new exit (range 10) 506 | -10/Materials | Discovered new exit (range 13) 562 | -10/Materials | Discovered new exit (range 14) 936 | -10/Materials | Discovered new exit (range 13) 1086 | -10/Materials | Entered Subcaves 1087 | -10/Subcaves | Approached by a straggling Scientist 1982 | -10/Subcaves | Disturbed a concealed Subdweller 2069 | -10/Subcaves | Learned 4 Materials zone layouts 2096 | -10/Subcaves | Visited 4L-MR0's lab 2111 | -10/Subcaves | Found Cargo Legs 2354 | -10/Subcaves | Discovered new exit (range 14) 2383 | -10/Subcaves | Shifting Twisted Machinery released Shrapnel Trap 2400 | -10/Subcaves | Shifting Twisted Machinery released Scrap Shield 2870 | -10/Subcaves | Found SUBCON Basin 2990 | -10/Subcaves | Build established: Hauler-Mutant 3163 | -10/Subcaves | Curiously followed by a Cobbler waking with a query about "LVR3C" 3296 | -10/Subcaves | Discovered new exit (range 15) 3297 | -10/Subcaves | Core integrity fell below 50% 3366 | -10/Subcaves | Core integrity fell below 20% 5491 | -10/Subcaves | Attached Cargo Legs, gained temporary slots: Utility x2 5786 | -10/Subcaves | Build established: Subdweller-Mutant 5814 | -10/Subcaves | Discovered new exit (range 5) 6231 | -10/Subcaves | Destroyed by QL-FDE(R) with Subdweller Laser Last Messages --------------- 06067_ FZ-B32(R): "ARGHSUB!" 06074_ FZ-B32(R) destroyed. 06080_ C7-X9V(R): "NOSTUCKSUB!" 06080_ 57-UDL(R): "ARGHSUB!" 06081_ C7-X9V(R) destroyed. 06084_ 57-UDL(R) destroyed. 06088_ Acquired 28 matter. 06095_ Subatomizers dissect the Sub. Optics. 06115_ Acquired Scrap Shield. 06125_ Subatomizers dissect the Sub. Optics. 06212_ Sub. Machine Gun shoots sparks and powers down. 06220_ Destroyed Scrap Shield. 06223_ Sub. Shrapnel Launcher shoots sparks and powers down. 06227_ Scrap Shield destroyed. 06228_ Temporary Utility slot lost. 06228_ Sub. Beam Cannon shoots sparks and powers down. Map ----- +----------------------------------------------------+ | | | | | | | | | | | | | ?????????????????????????????????????????????????? | | ?????????????????????????????????????????????????? | | ?????????????????????????????????????????????????? | | ?????????????????????????????????????????????????? | | ?????????????????????????????????????????????????? | | ?????????????????????????????????????????????????? | | ?????????????????????????????????????????????????? | | ?????????????????????????????????????????????????? | | ?????????????????????????????????????????????????? | | ?????????????????????????????????????????????????? | | ?????????????????????????????????????????????????? | | ?????????????????????????????????????????????????? | | ?????????????????????????????????????????????????? | | ?????????????????#####???????????????????????????? | | ######??????????######################???????????? | | ##############?#### ##################???????????? | | ######";; ### ### ### ### #######??????? | | #### ;;;;; ## ########??????? | | ### R # # ###?????? | | ### R @ ###?????? | | ;; ## ## # ##?????? | | #### ## ### ######### ###?????? | | ##### ## ## ######## ##?????? | | ###### ## ###??### ##?????? | | # ######## ##??## ###?????? | | ########?### ## ##### ###????? | | ######??### ### ##### ####????? | | # ??????## #### ##### ###???? | | ???##???## #### ## ###### # ###???? | | ?? "#???### ######## #### ####### # # ##???? | | ? "## ##################### ####### ##???? | | " " ?#####?????######### ###?## # ## ###??? | | " """??????????????????## ##??### ## ##??? | | " " ?????????????????######?#### #### ##??? | | "" "???????????????########## ##### ##??? | | " "??????????????????????##### ## ##??? | | """""????????##??????????#### ###??? | | # "##??????#####<#####????#### ####??? | | ? "#??????## ######## % ###???? | | ?? """?????# ####### ## ###??? | | ??? """????## ###"## ##### ##??? | | ????""?????# ## ######## ##??? | | ?????"?????# #####??## ##??? | | ???????????# % #######???? ##??? | +----------------------------------------------------+ Best States ------------- Heat Dissipation 25 Energy Generation 15 Energy Capacity 250 Matter Stores 300 Matter Capacity 300 Sight Range 16 Terrain Scan Range 16 Terrain Scan Density 10 Armor Coverage 800 Evasion (%) 55 Targeting Accuracy 6 Recoil Reduction 2 Item Schematics ----------------- None Robot Schematics ------------------ None Fabricated ------------ Nothing Repaired ---------- Nothing Alien Tech Used ----------------- None Achievements -------------- None Challenges ------------ None Game ------ Seed MagneticHugeRedirector Manual? 0 Play Time 00:27:56 Cumulative 99.7 hours Start 2025.10.07 @ 22:14:26 End 2025.10.07 @ 22:39:49 Sessions 1 Manual Loads 0 Difficulty Rogue Special Mode None Game No. 159 Rogue 158 Adventurer 1 Explorer 0 Win Type - Total 1 Types 0/0/0/1/0/0/0/0/0/0 Lore% 55 Gallery% 52 Achievement% 49 Wizard Run 0 Options --------- Layout 1 ASCII 0 Keyboard 0 Movement Mouse Keybinds 0 Fullscreen 1 Font 24/Smallcaps Map View 50x35 Zoom Use 0% Tactical HUD 1 Map Filters NONE Filters NONE Steam 1 RUN: 4cb32062-a4cb-4bd3-b15f-265bf71cdcac